bitfinex/quotes_ETHUSD_20260214
["timestamp","ask_amount","ask_price","bid_price","bid_amount"]
[1771057032517,1.20551296,2075.7,2074.9,31.20487734]
[1771057032708,1.20551296,2075.7,2074.9,1.20487734]
[1771057033126,1.20439241,2075.8,2075.0,30.0]
[1771057033302,4.81836404,2075.9,2075.0,30.0]
[1771057033303,1.20542656,2075.9,2075.0,30.0]
[1771057033506,1.20424609,2076.0,2075.0,30.0]
[1771057033705,1.20424609,2076.0,2075.1,30.0]
[1771057033932,1.2042192,2076.1,2075.2,0.868]
[1771057034318,1.2042192,2076.1,2075.3,30.0]
[1771057034950,5.6066162,2076.3,2075.3,5.067]
[1771057035130,4.81625209,2076.4,2075.5,3.541]
[1771057035317,4.81625209,2076.4,2074.9,7.24670697]
[1771057035509,4.81625209,2076.4,2075.1,30.0]
[1771057035709,10.42286829,2076.4,2075.1,30.0]
[1771057036413,5.6066162,2076.2,2074.2,6.04182963]
[1771057036614,5.6066162,2075.9,2074.4,20.883]
[1771057036856,5.6066162,2075.9,2074.5,5.084]
[1771057037138,5.6066162,2075.7,2074.6,1.20503163]
[1771057038524,5.6066162,2075.7,2074.7,3.341]
[1771057038908,1.20447099,2075.6,2074.8,1.20493541]
[1771057039114,1.20447099,2075.6,2075.0,0.001]
[1771057040846,10.42368438,2076.0,2075.0,0.001]
[1771057040847,1.20429693,2075.9,2075.0,0.001]
[1771057041545,1.20429693,2075.9,2075.1,30.0]
[1771057041934,1.20429693,2075.9,2075.0,0.001]
[1771057042243,1.20429693,2075.9,2075.1,3.34]
[1771057043232,1.20429693,2075.9,2075.1,4.54474516]
[1771057044656,6.81091313,2075.9,2075.0,0.001]
[1771057044954,6.81091313,2075.9,2075.2,3.34]
[1771057045148,6.81091313,2075.9,2075.0,0.001]
[1771057045442,6.81091313,2075.9,2075.1,3.133]
[1771057047417,6.81091313,2075.9,2075.2,2.473]
[1771057047534,6.81091313,2075.9,2075.2,3.34]
[1771057047854,5.6066162,2075.6,2074.8,0.001]
[1771057049558,5.6066162,2075.4,2074.8,0.001]
[1771057049756,1.20452902,2075.5,2074.8,0.001]
[1771057051857,6.06013436,2075.5,2074.8,0.001]
[1771057052178,6.06013436,2075.5,2074.8,2.474]
[1771057052380,6.06013436,2075.5,2074.8,0.001]
[1771057052549,6.06013436,2075.3,2074.8,0.001]
[1771057052950,6.06013436,2075.5,2074.8,0.001]
[1771057053168,6.06013436,2075.5,2074.5,0.001]
[1771057053356,6.06013436,2075.5,2074.5,0.633]
[1771057053882,1.20458706,2075.4,2074.5,0.633]
[1771057054191,6.06013436,2075.3,2074.5,0.633]
[1771057056304,1.20470316,2075.2,2074.5,0.633]
[1771057058166,4.81813164,2075.5,2074.6,8.107]
[1771057058366,4.81813164,2075.5,2074.6,1.20503692]
[1771057058601,4.81813164,2075.5,2074.7,3.341]
[1771057059694,1.20452902,2075.5,2074.7,3.341]
[1771057059919,16.32391574,2076.2,2074.9,6.45915701]
[1771057060086,1.20418091,2076.1,2075.1,6.45915701]
[1771057060301,1.20418091,2076.1,2075.2,1.20470316]
[1771057061168,7.22699665,2076.1,2075.2,1.20470316]
[1771057062096,1.20418091,2076.1,2075.2,7.66386017]
[1771057062300,0.0011,2076.2,2075.3,4.81858905]
[1771057062595,0.0011,2076.2,2075.4,3.341]
[1771057063193,0.0011,2076.2,2075.4,9.80015701]
[1771057064498,0.0011,2076.2,2075.5,1.20452902]
[1771057065896,0.0011,2076.2,2075.5,7.66368603]
[1771057066096,0.0011,2076.2,2075.6,30.0]
[1771057066396,0.0011,2076.2,2075.6,8.178]
[1771057066793,0.0011,2076.2,2075.7,1.20441296]
[1771057067175,0.0011,2076.2,2075.8,0.867]
[1771057067373,0.0011,2076.5,2075.8,0.867]
[1771057067770,0.0011,2076.5,2075.9,30.0]
[1771057067976,0.0011,2076.5,2076.0,2.473]
[1771057068805,0.0011,2076.5,2076.1,25.054]
[1771057068980,0.0011,2076.5,2076.2,1.20412291]
[1771057069384,0.003,2077.0,2076.2,7.66327992]
[1771057069779,0.003,2077.0,2076.2,1.20412291]
[1771057070189,6.02581574,2077.0,2076.2,1.20412291]
[1771057070384,0.003,2077.0,2076.2,1.20412291]
[1771057074322,6.02281574,2077.5,2076.4,36.45915701]
[1771057074509,6.02281574,2077.5,2076.6,3.727]
[1771057074707,6.02281574,2077.5,2076.4,6.45915701]
[1771057074912,6.02281574,2077.5,2076.7,2.472]
[1771057075120,6.02281574,2077.8,2076.8,1.20377503]
[1771057075584,6.02281574,2078.0,2076.9,6.45915701]
[1771057075980,7.2256407,2078.5,2077.0,3.339]
[1771057076197,7.2256407,2078.5,2077.1,36.45915701]
[1771057076379,7.2256407,2078.5,2077.2,33.339]
[1771057076380,6.27409014,2078.4,2077.2,33.339]
[1771057076703,1.20276562,2078.6,2077.4,6.45915701]
[1771057076903,10.83360885,2078.7,2077.4,6.45915701]
[1771057076904,6.02281574,2078.7,2077.5,6.45915701]
[1771057077233,4.81008885,2079.0,2077.5,6.45915701]
[1771057077234,6.02281574,2079.1,2078.0,30.0]
[1771057077389,6.02281574,2078.8,2077.6,2.472]
[1771057078303,6.02281574,2078.7,2077.4,1.20337167]
[1771057078512,6.02281574,2078.7,2077.6,2.109]
[1771057078832,6.02281574,2078.4,2077.1,2.07060117]
[1771057078984,6.02281574,2078.1,2077.1,2.472]
[1771057079320,6.02281574,2078.1,2076.7,3.526]
[1771057079321,6.02281574,2077.9,2076.7,3.526]
[1771057079618,6.02281574,2077.9,2076.8,3.339]
[1771057079986,6.02281574,2077.9,2076.9,30.0]
[1771057080188,6.02281574,2077.9,2076.8,3.339]
[1771057080619,6.02281574,2077.9,2076.6,1.20389097]
[1771057080805,6.02281574,2077.9,2077.1,0.00155]
[1771057081320,7.17637063,2077.8,2077.1,0.00155]
[1771057081489,7.17637063,2077.8,2076.8,0.00165]
[1771057081490,5.97317495,2077.6,2076.8,0.00165]
[1771057081684,5.97317495,2077.6,2076.4,0.897]
[1771057082199,1.20319568,2077.8,2076.4,0.897]
[1771057082200,1.20311862,2078.0,2076.8,36.39499524]
[1771057082400,7.1761837,2078.2,2076.6,6.39499524]
[1771057082608,5.97317495,2077.9,2076.7,3.338]
[1771057082801,5.97317495,2077.9,2076.6,6.39499524]
[1771057083000,5.97317495,2077.9,2076.7,2.471]
[1771057083929,5.97317495,2077.7,2076.8,1.20377503]
[1771057084557,5.97317495,2077.7,2076.0,1.20423892]
[1771057084823,5.97317495,2077.1,2076.1,2.471]
[1771057085596,5.97317495,2077.1,2076.0,1.20423892]
[1771057085800,5.97317495,2077.1,2075.9,0.001]
[1771057085801,5.97317495,2076.8,2075.9,0.001]
[1771057086201,9.64781758,2077.1,2075.9,0.001]
[1771057086428,9.64781758,2077.1,2076.0,30.0]
[1771057086633,7.17678103,2077.1,2075.9,0.001]
[1771057086798,7.17678103,2077.1,2076.1,2.471]
[1771057087118,7.17678103,2077.1,2076.0,1.9]
[1771057087314,5.97317495,2076.9,2075.9,0.001]
[1771057087926,5.97317495,2076.7,2075.9,0.001]
[1771057088090,1.20375974,2076.9,2075.9,0.001]
[1771057088301,7.17693469,2076.9,2075.9,0.001]
[1771057089595,5.97317495,2076.7,2075.9,0.001]
[1771057089789,5.97317495,2076.5,2075.9,0.001]
[1771057091906,5.97317495,2076.3,2074.8,4.81965099]
[1771057092221,5.97317495,2076.1,2074.8,5.68665099]
[1771057092597,5.97317495,2076.1,2074.8,4.81965099]
[1771057092802,5.97317495,2076.1,2075.6,0.001]
[1771057093016,5.97317495,2076.1,2074.8,1.20493541]
[1771057093403,5.97317495,2076.1,2075.4,0.001]
[1771057093801,7.17758791,2075.7,2074.5,0.001]
[1771057094005,7.17758791,2075.7,2075.0,0.001]
[1771057094795,7.17758791,2075.7,2074.5,0.001]
[1771057097608,5.97317495,2075.3,2074.5,0.001]
[1771057097814,5.97317495,2075.2,2074.5,0.001]
[1771057098631,7.17793616,2075.1,2074.5,0.001]
[1771057100128,5.97317495,2074.9,2074.2,0.001]
[1771057100315,5.97157495,2074.8,2074.2,0.001]
[1771057100625,1.2049775,2074.8,2074.2,0.001]
[1771057101035,7.17815245,2074.8,2074.2,0.001]
[1771057103304,1.2049775,2074.8,2074.2,0.001]
[1771057103705,7.17815245,2074.8,2074.2,0.001]
[1771057107743,1.2049775,2074.8,2074.2,0.001]
[1771057108040,3.67790279,2074.9,2074.2,0.001]
[1771057108241,0.0011,2075.1,2074.2,6.39599524]
[1771057108751,0.0011,2075.1,2074.4,6.39499524]
[1771057108900,1.20555621,2075.7,2074.6,6.39499524]
[1771057109332,7.17873116,2075.7,2074.3,6.39499524]
[1771057109534,5.97317495,2075.4,2074.2,0.869]
[1771057109732,1.20464511,2075.3,2074.3,1.20522585]
[1771057111115,7.49076977,2075.3,2074.3,1.20522585]
[1771057111999,1.20464511,2075.3,2074.3,7.60455902]
[1771057112420,7.29258044,2075.4,2074.5,6.39933317]
[1771057112421,3.67860811,2075.4,2074.5,6.39933317]
[1771057113429,1.20460811,2075.4,2074.5,6.39933317]
[1771057114136,1.20456162,2075.5,2074.6,1.20505157]
[1771057114738,7.49068628,2075.5,2074.3,1.20522585]
[1771057115318,7.49068628,2075.5,2074.4,3.342]
[1771057115818,7.49068628,2075.5,2074.3,1.20522585]
[1771057116020,7.49068628,2075.5,2074.3,4.54722585]
[1771057116330,7.49068628,2075.5,2074.3,10.94655902]
[1771057117036,1.20456162,2075.5,2074.4,6.39933317]
[1771057117235,0.0011,2075.7,2074.8,6.39933317]
[1771057117437,0.0011,2075.7,2075.0,6.39933317]
[1771057117638,0.0011,2075.7,2075.2,6.39933317]
[1771057118454,0.0011,2075.7,2075.3,1.20464511]
[1771057120256,0.0011,2075.7,2075.3,7.14090704]
[1771057124621,0.0011,2076.0,2075.5,5.93626193]
[1771057124915,0.0011,2076.0,2075.6,2.473]
[1771057125957,1.20393254,2076.6,2075.7,35.93626193]
[1771057126254,1.20393254,2076.6,2075.8,30.0]
[1771057126733,1.20393254,2076.6,2075.9,1.20429693]
[1771057127136,7.44672357,2077.0,2075.9,1.20429693]
[1771057127724,7.44672357,2077.0,2075.9,2.07129693]
[1771057128756,7.44672357,2077.0,2076.0,2.473]
[1771057129279,7.44672357,2077.0,2075.6,30.0]
[1771057129445,7.44672357,2077.0,2075.9,1.299]
[1771057130110,6.24306445,2076.8,2075.5,4.81718772]
[1771057130260,6.24306445,2076.5,2075.6,2.473]
[1771057130768,6.24306445,2076.3,2075.5,2.473]
[1771057130939,6.24306445,2076.3,2075.6,2.473]
[1771057131375,6.24306445,2076.3,2075.4,1.20458706]
[1771057131681,6.24306445,2076.3,2075.5,2.473]
[1771057133081,6.24306445,2076.3,2075.4,1.20458706]
[1771057133254,6.24306445,2076.3,2074.9,1.20581927]
[1771057133255,6.24306445,2076.1,2074.9,1.20581927]
[1771057133573,6.24306445,2076.1,2075.0,7.29225807]
[1771057133771,6.24306445,2076.1,2074.9,1.2058393]
[1771057133977,6.24306445,2076.1,2075.0,8.40926193]
[1771057134178,6.24306445,2076.1,2075.1,5.93626193]
[1771057134358,6.24306445,2076.1,2075.0,2.473]
[1771057135282,7.44730337,2076.0,2075.0,1.20477372]
[1771057135449,7.44730337,2076.0,2075.0,2.473]
[1771057135953,7.44730337,2076.0,2074.9,2.474]
[1771057136154,7.44730337,2076.0,2074.9,0.001]
[1771057136567,6.24306445,2075.8,2074.9,0.001]
[1771057137278,6.24306445,2075.6,2074.9,0.001]
[1771057137862,1.20441296,2075.7,2074.9,0.001]
[1771057138079,1.20441296,2075.7,2074.9,5.93726193]
[1771057138280,1.20439114,2075.8,2074.9,5.93726193]
[1771057138596,1.20433952,2075.9,2075.0,5.93626193]
[1771057139362,11.06008402,2076.0,2075.1,1.20476121]
[1771057139592,6.24306445,2075.9,2075.1,2.473]
[1771057140179,6.24306445,2075.9,2074.9,3.821]
[1771057140968,6.24306445,2075.7,2074.9,0.001]
[1771057141667,5.6599134,2075.5,2074.9,0.001]
[1771057142769,1.20447099,2075.6,2074.9,0.001]
[1771057143177,1.20445679,2075.7,2074.9,0.001]
[1771057143577,6.86437019,2075.7,2074.9,0.001]
[1771057147100,1.20445679,2075.7,2074.9,6.10139277]
[1771057147310,4.81722711,2075.9,2074.9,6.10139277]
[1771057147869,5.6599134,2075.8,2074.9,0.001]
[1771057149803,1.20441296,2075.7,2074.9,0.001]
[1771057150002,1.20439881,2075.8,2074.9,6.10139277]
[1771057151501,12.94963956,2076.1,2075.1,6.10039277]
[1771057151502,1.20420981,2076.1,2075.1,6.10039277]
[1771057152298,1.20406492,2076.3,2075.2,7.30509593]
[1771057153005,5.6599134,2076.2,2075.1,2.473]
[1771057153911,5.6599134,2075.9,2074.9,0.001]
[1771057154207,6.86432636,2075.7,2074.9,0.001]
[1771057155892,16.25135328,2075.7,2074.9,0.001]
[1771057156201,1.20452902,2075.5,2074.9,0.001]
[1771057156393,5.6599134,2075.4,2074.9,0.001]
[1771057157088,1.20452902,2075.5,2074.9,0.001]
[1771057158404,7.29041978,2075.9,2074.9,0.001]
[1771057158608,1.20435494,2075.8,2074.9,0.001]
[1771057158928,1.20435494,2075.8,2074.9,6.10139277]
[1771057160603,1.20435494,2075.8,2075.0,1.20481927]
[1771057161403,6.86426834,2075.8,2075.0,1.20481927]
[1771057161613,6.86426834,2075.8,2074.9,0.001]
[1771057164502,5.6599134,2075.7,2074.9,0.001]
[1771057164697,5.6599134,2075.5,2074.9,0.001]
[1771057166817,1.20458706,2075.4,2074.9,0.001]
[1771057168840,0.25163903,2075.8,2074.9,6.10139277]
[1771057169043,1.20441296,2075.7,2074.9,6.10139277]
[1771057169915,1.20441296,2075.7,2074.9,0.001]
[1771057170115,6.86432636,2075.7,2074.9,0.001]
[1771057178732,1.20441296,2075.7,2074.9,5.52873479]
[1771057179531,1.20441296,2075.7,2074.9,0.001]
[1771057179725,6.87274625,2075.7,2074.9,0.001]
[1771057183061,6.87263022,2075.9,2074.9,0.001]
[1771057183242,6.87263022,2075.9,2074.9,1.20587327]
[1771057185362,1.20429693,2075.9,2074.9,5.55646895]
[1771057186834,6.87263022,2075.9,2074.9,5.55646895]
[1771057187351,6.87263022,2075.9,2074.9,8.02946895]
[1771057187861,6.87263022,2075.9,2074.9,3.6788349]
[1771057188431,6.87263022,2075.9,2074.9,0.001]
[1771057189058,6.87263022,2075.9,2074.9,1.20586325]
[1771057189667,5.66833329,2075.8,2074.9,0.001]
[1771057190537,6.87274625,2075.7,2074.9,0.001]
[1771057191145,1.20423892,2076.0,2075.0,5.55546895]
[1771057191570,6.87257221,2076.0,2074.9,0.001]
[1771057191873,5.66833329,2075.8,2074.9,0.001]
[1771057192177,2.473,2075.9,2075.0,5.55546895]
[1771057194745,1.20435494,2075.8,2075.0,6.7602477]
[1771057196238,6.87268823,2075.8,2074.9,1.20585399]
[1771057196447,6.87268823,2075.8,2074.9,0.001]
[1771057202275,5.88761223,2075.4,2074.7,0.001]
[1771057204073,5.88761223,2075.2,2074.7,0.001]
[1771057204380,1.20464511,2075.3,2074.0,0.001]
[1771057204381,5.88761223,2075.0,2074.0,0.001]
[1771057204580,5.88761223,2074.8,2074.0,0.001]
[1771057204783,6.75461223,2074.7,2073.7,0.001]
[1771057206184,5.88761223,2074.5,2073.7,0.001]
[1771057206381,1.20505157,2074.6,2073.7,0.001]
[1771057206382,5.88761223,2074.3,2073.7,0.001]
[1771057207259,5.88761223,2074.3,2073.3,0.001]
[1771057208155,5.88761223,2074.1,2073.3,0.001]
[1771057209086,5.88761223,2073.7,2073.1,0.001]
[1771057209285,5.88761223,2073.6,2073.0,0.001]
[1771057209663,2.474,2073.7,2072.2,5.75913771]
[1771057209664,5.99001223,2073.0,2072.4,0.001]
[1771057209969,5.99001223,2073.0,2072.2,0.001]
[1771057209970,5.88761223,2072.9,2072.2,0.001]
[1771057210170,5.88761223,2072.7,2071.3,1.362]
[1771057210373,5.88761223,2072.7,2071.3,7.12013771]
[1771057210578,5.88761223,2072.7,2071.4,30.0]
[1771057210772,5.88761223,2072.7,2071.4,5.75813771]
[1771057211082,5.88761223,2072.7,2071.3,1.362]
[1771057211585,5.88761223,2072.4,2070.9,30.0]
[1771057211885,5.88761223,2072.2,2070.8,6.69718581]
[1771057212084,5.88761223,2072.2,2070.5,29.597]
[1771057212085,5.88761223,2071.8,2070.5,29.597]
[1771057212285,5.88761223,2071.8,2070.5,2.474]
[1771057212486,5.88761223,2071.8,2070.3,3.342]
[1771057212695,5.88761223,2071.6,2070.2,22.035]
[1771057212880,5.88761223,2071.6,2070.2,1.911]
[1771057213383,5.88761223,2071.6,2070.2,2.094]
[1771057214088,7.09446716,2071.5,2070.3,35.75813771]
[1771057214289,0.1024,2072.2,2070.2,3.30160472]
[1771057214290,7.96194305,2072.5,2071.0,5.75813771]
[1771057214484,5.88761223,2072.3,2071.0,3.343]
[1771057214682,5.88761223,2072.3,2071.0,7.62413771]
[1771057214872,5.88761223,2072.3,2071.1,5.75813771]
[1771057215068,5.88761223,2072.3,2070.6,16.31516857]
[1771057215390,5.88761223,2072.2,2071.0,27.95013771]
[1771057215700,5.88761223,2072.3,2070.6,16.31516857]
[1771057215865,5.88761223,2072.3,2070.3,16.50202481]
[1771057215866,5.88761223,2072.2,2070.8,5.75813771]
[1771057216262,1.20650547,2072.1,2070.8,6.96539673]
[1771057216461,7.0941177,2072.1,2070.9,3.343]
[1771057217762,1.20650547,2072.1,2071.0,5.75813771]
[1771057218557,4.82602191,2072.2,2071.0,5.75813771]
[1771057218784,4.82602191,2072.2,2071.0,6.96528087]
[1771057218960,4.82602191,2072.2,2071.0,5.75813771]
[1771057219159,10.71363414,2072.2,2071.1,2.475]
[1771057220496,1.20650547,2072.1,2071.1,3.6820548]
[1771057220665,1.20650547,2072.1,2071.3,5.75813771]
[1771057220989,1.20650547,2072.1,2071.0,6.9652543]
[1771057221193,1.20650547,2072.1,2071.1,3.344]
[1771057221394,1.20650547,2072.1,2071.0,6.9652543]
[1771057221592,1.20650547,2072.1,2071.0,5.75813771]
[1771057221891,7.0941177,2072.1,2071.1,3.344]
[1771057222096,7.0941177,2072.1,2070.7,6.96642196]
[1771057222396,7.0941177,2072.1,2071.2,2.475]
[1771057222714,1.20650547,2072.1,2071.3,30.0]
[1771057222901,1.20650547,2072.1,2071.4,2.475]
[1771057223116,7.0941177,2072.1,2070.4,16.31516857]
[1771057223269,7.0941177,2072.1,2070.8,2.475]
[1771057223672,5.88761223,2071.9,2070.7,0.001]
[1771057224296,5.88761223,2071.9,2070.5,0.001]
[1771057224688,5.88761223,2071.7,2070.5,0.001]
[1771057225295,5.88761223,2071.7,2070.5,1.223]
[1771057225901,5.88761223,2071.7,2070.5,1.355]
[1771057226575,1.20679667,2071.6,2070.5,2.56239629]
[1771057227496,7.0944089,2071.6,2070.5,2.56239629]
[1771057228396,7.0944089,2071.6,2070.5,1.20839629]
[1771057228598,7.0944089,2071.6,2070.6,3.344]
[1771057228896,7.0944089,2071.6,2070.5,1.20840068]
[1771057229095,7.0944089,2071.6,2070.5,0.001]
[1771057229496,7.0944089,2071.6,2070.5,2.161]
[1771057229906,7.0944089,2071.6,2070.5,0.001]
[1771057230605,5.88761223,2071.4,2070.5,0.001]
[1771057231303,5.86298985,2071.2,2070.5,0.001]
[1771057232407,1.20697146,2071.3,2070.5,0.001]
[1771057232983,7.06996131,2071.3,2070.5,0.001]
[1771057238107,7.06996131,2071.3,2070.0,1.20872296]
[1771057238281,7.06996131,2071.3,2070.1,1.543]
[1771057238481,7.06996131,2071.3,2070.2,30.0]
[1771057239005,1.20697146,2071.3,2070.2,30.0]
[1771057239592,1.20685493,2071.5,2070.5,30.0]
[1771057239982,1.2065637,2072.0,2070.9,0.05458]
[1771057240182,1.2065637,2072.0,2071.0,3.345]
[1771057240988,1.2065637,2072.0,2071.0,4.32646286]
[1771057241307,7.15723103,2072.0,2071.0,2.381]
[1771057241480,7.15723103,2072.0,2070.7,0.719]
[1771057241683,5.95066733,2071.8,2070.5,1.398]
[1771057242502,5.95066733,2071.8,2070.3,0.09888151]
[1771057242687,5.95066733,2071.8,2070.4,31.368]
[1771057242894,5.95066733,2071.8,2070.6,30.0]
[1771057243207,5.95066733,2071.8,2070.7,30.0]
[1771057243612,1.2065637,2072.0,2071.0,0.11404804]
[1771057243794,1.2065637,2072.0,2071.1,30.0]
[1771057244190,1.2065637,2072.0,2071.2,2.476]
[1771057244596,1.2065637,2072.0,2071.1,30.0]
[1771057244795,1.2065637,2072.0,2071.2,2.476]
[1771057245225,1.2065637,2072.0,2071.0,1.2071463]
[1771057245415,1.2065637,2072.0,2071.2,2.512]
[1771057245585,4.82625482,2072.1,2071.4,1.20691319]
[1771057246790,4.82625482,2072.1,2071.3,3.6829259]
[1771057247116,4.82625482,2072.1,2071.3,2.476]
[1771057247318,4.82625482,2072.1,2071.3,3.6829712]
[1771057247728,4.82625482,2072.1,2071.3,2.476]
[1771057248215,10.77692215,2072.1,2071.2,1.20698542]
[1771057248516,5.95066733,2072.0,2071.3,2.476]
[1771057249718,1.20662194,2071.9,2071.3,2.476]
[1771057250734,7.15728927,2071.9,2071.1,2.476]
[1771057252035,1.20662194,2071.9,2071.1,3.68308512]
[1771057252195,1.20662194,2071.9,2070.9,3.82]
[1771057252395,7.15728927,2071.9,2071.0,3.345]
[1771057252610,7.15728927,2071.9,2070.5,15.10847541]
[1771057252828,7.15728927,2071.9,2070.7,0.869]
[1771057253196,7.15728927,2071.9,2070.4,1.20745655]
[1771057253395,5.95066733,2071.7,2070.2,0.001]
[1771057253593,5.95066733,2071.7,2070.3,0.595]
[1771057253798,5.95066733,2071.5,2070.3,1.80249749]
[1771057255518,5.95066733,2071.5,2070.4,4.957]
[1771057255710,5.95066733,2071.5,2070.4,3.985]
[1771057256118,5.95066733,2071.5,2070.4,1.20743991]
[1771057256119,5.95066733,2071.3,2070.4,1.20743991]
[1771057256427,5.95066733,2071.3,2070.5,2.476]
[1771057256629,1.20691319,2071.4,2070.5,2.476]
[1771057256829,7.15758052,2071.4,2070.4,16.3386469]
[1771057257000,7.15758052,2071.4,2070.5,3.345]
[1771057257526,4.82614184,2072.1,2070.7,45.10847541]
[1771057257527,5.95066733,2071.7,2070.7,45.10847541]
[1771057257830,1.20679667,2071.6,2070.7,15.10847541]
[1771057258030,1.20679667,2071.6,2070.9,1.20720459]
[1771057258208,1.20679667,2071.6,2071.0,2.476]
[1771057258527,7.157464,2071.6,2071.0,2.476]
[1771057258837,4.82676832,2071.8,2071.0,2.476]
[1771057259226,10.77743565,2071.8,2071.0,2.476]
[1771057260269,5.95066733,2071.7,2071.0,2.476]
[1771057260606,5.95066733,2071.7,2070.7,1.20729123]
[1771057260929,5.95066733,2071.7,2070.8,2.476]
[1771057261146,5.95066733,2071.7,2070.5,0.869]
[1771057261438,5.95066733,2071.7,2070.3,6.94154503]
[1771057261439,5.95066733,2071.6,2070.3,6.94154503]
[1771057261640,5.95066733,2071.6,2070.3,1.20754503]
[1771057261807,5.95066733,2071.6,2070.4,2.476]
[1771057262001,5.95066733,2071.6,2070.4,1.852]
[1771057262426,1.20685493,2071.5,2070.4,1.852]
[1771057262706,5.95066733,2071.4,2070.4,1.852]
[1771057263210,5.95066733,2071.4,2070.3,2.476]
[1771057263437,5.95066733,2071.4,2070.2,0.001]
[1771057264545,5.95066733,2071.2,2070.2,1.20860986]
[1771057265115,5.95066733,2071.2,2070.3,2.476]
[1771057265432,5.95066733,2071.2,2070.2,0.001]
[1771057265633,5.95066733,2071.2,2070.3,2.476]
[1771057266023,5.95066733,2071.2,2070.2,0.001]
[1771057266243,5.95066733,2071.2,2070.3,2.476]
[1771057267042,1.20708802,2071.1,2070.2,0.001]
[1771057267243,7.15775535,2071.1,2070.3,2.476]
[1771057268443,7.15775535,2071.1,2070.2,0.001]
[1771057268615,7.15775535,2071.1,2070.3,2.476]
[1771057268814,7.15775535,2071.1,2070.2,0.001]
[1771057272426,7.40984852,2071.1,2070.2,0.001]
[1771057272774,7.40984852,2071.1,2070.0,0.496]
[1771057272775,5.95066733,2070.6,2070.0,0.001]
[1771057273563,5.95066733,2070.4,2070.0,0.001]
[1771057273724,1.20720459,2070.9,2070.0,0.001]
[1771057274228,7.15787192,2070.9,2070.0,0.001]
[1771057275049,7.15787192,2070.9,2070.0,0.496]
[1771057275652,7.15787192,2070.9,2070.0,1.70368714]
[1771057275851,7.15787192,2070.9,2070.0,1.20872768]
[1771057276938,7.15787192,2070.9,2070.1,30.0]
[1771057277655,7.15787192,2070.9,2070.2,1.20761279]
[1771057278727,7.15787192,2070.9,2070.0,1.20872047]
[1771057279865,7.15787192,2070.9,2070.2,1.20761279]
[1771057280366,4.82837977,2071.1,2070.2,1.20761279]
[1771057280571,10.7790471,2071.1,2070.2,3.68361279]
[1771057280948,5.95066733,2071.0,2070.2,3.68361279]
[1771057281442,5.95066733,2071.0,2070.2,2.476]
[1771057281859,5.95066733,2070.8,2070.1,2.476]
[1771057283372,5.95066733,2070.8,2070.1,1.155]
[1771057283544,5.95066733,2070.8,2070.0,2.025]
[1771057283866,5.95066733,2071.1,2070.1,1.20767112]
[1771057285468,5.95066733,2071.1,2070.0,3.23268271]
[1771057285676,5.95066733,2071.1,2070.0,0.001]
[1771057286175,5.95066733,2070.9,2070.0,0.001]
[1771057287672,1.2071463,2071.0,2070.1,30.0]
[1771057288040,5.95066733,2071.0,2070.1,31.20762786]
[1771057288272,5.95066733,2071.0,2070.0,0.001]
[1771057290051,5.95066733,2070.8,2070.0,0.001]
[1771057291467,5.95066733,2070.8,2070.0,2.477]
[1771057292150,7.15798852,2070.7,2070.0,3.68471955]
[1771057292749,7.15798852,2070.7,2070.0,2.477]
[1771057293376,7.15798852,2070.7,2070.0,0.001]
[1771057294276,7.15798852,2070.7,2069.8,0.001]
[1771057296753,7.41019157,2070.7,2069.8,0.001]
[1771057297263,5.95066733,2070.6,2069.8,0.001]
[1771057298476,5.95066733,2070.4,2069.8,0.001]
[1771057300488,7.15822179,2070.3,2069.8,0.001]
[1771057303071,7.15822179,2070.3,2069.7,0.001]
[1771057305860,1.20755446,2070.3,2069.7,0.001]
[1771057306184,10.78057022,2070.5,2069.7,0.001]
[1771057306393,1.20749613,2070.4,2069.7,0.001]
[1771057308390,7.15816346,2070.4,2069.7,0.001]
[1771057310776,5.95066733,2070.3,2069.7,0.001]
[1771057311284,1.20761279,2070.2,2069.6,0.001]
[1771057311663,5.95066733,2070.3,2069.6,0.001]
[1771057311869,1.20759228,2070.3,2069.6,0.001]
[1771057312694,7.15825961,2070.3,2069.6,0.001]
[1771057312860,7.15802983,2070.7,2069.7,30.0]
[1771057313688,7.15802983,2070.7,2069.6,1.20895737]
[1771057313890,7.15802983,2070.7,2069.7,3.346]
[1771057314671,7.15802983,2070.7,2069.6,1.20895737]
[1771057314871,7.15802983,2070.7,2069.6,4.55495737]
[1771057315081,7.15802983,2070.7,2069.6,1.20895737]
[1771057315481,7.15802983,2070.7,2069.7,30.0]
[1771057315685,7.15802983,2070.7,2069.7,1.20787165]
[1771057316293,7.15802983,2070.7,2069.6,4.55491533]
[1771057318692,7.15802983,2070.7,2069.6,3.68491533]
[1771057320085,7.15802983,2070.7,2069.6,1.20891533]
[1771057320274,7.15802983,2070.7,2069.6,3.68491533]
[1771057320472,4.82916281,2070.8,2069.8,16.40009659]
[1771057320473,1.20726289,2070.8,2069.8,16.40009659]
[1771057320683,1.20832289,2070.9,2069.9,30.0]
[1771057321477,7.15899022,2070.9,2069.9,30.0]
[1771057321795,7.15899022,2070.9,2069.7,2.476]
[1771057322000,7.15899022,2070.9,2069.6,3.56491533]
[1771057322497,7.15899022,2070.9,2069.6,1.20891533]
[1771057325183,7.15899022,2070.9,2069.6,0.001]
[1771057325499,5.95066733,2070.8,2069.6,0.001]
[1771057327309,5.95066733,2070.6,2069.6,0.001]
[1771057329417,5.95066733,2070.4,2069.6,0.001]
[1771057331519,5.95066733,2070.2,2069.6,0.001]
[1771057332024,5.69972476,2071.0,2069.6,0.001]
[1771057332025,4.82924231,2070.8,2069.6,0.80915775]
[1771057332225,4.82964472,2070.6,2069.8,30.0]
[1771057332384,3.6833795,2070.7,2069.8,0.80815775]
[1771057332385,1.20736439,2070.7,2069.8,0.80815775]
[1771057332785,1.20736439,2070.7,2069.9,30.0]
[1771057333004,1.20736439,2070.7,2069.9,0.80062022]
[1771057333382,1.16384098,2070.7,2070.0,1.20772946]
[1771057333717,6.45820607,2070.7,2069.8,3.68384616]
[1771057334487,6.45820607,2070.7,2069.9,30.0]